fUST/lending_fUST_20250210
["ID","MTS","AMOUNT","RATE_DAILY","PERIOD"]
[352542593,1739159441439,-500.0,0.00010958,2]
[352542594,1739159441448,-500.0,0.00010958,2]
[352542595,1739159441458,-500.0,0.00010958,2]
[352542596,1739159441467,-500.0,0.00010958,2]
[352542597,1739159441476,-589.21,0.00010958,2]
[352542598,1739159441485,-1026.49,0.00010958,2]
[352542599,1739159441495,-500.0,0.00010958,2]
[352542600,1739159441504,-746.76,0.00010958,2]
[352542601,1739159441513,-500.0,0.00010958,2]
[352542602,1739159441523,-655.27,0.00010958,2]
[352542603,1739159441532,-500.0,0.00010958,2]
[352542604,1739159441541,-2053.08,0.00010958,2]
[352542605,1739159441550,-2692.2,0.00010958,2]
[352542606,1739159441559,-500.0,0.00010958,2]
[352542607,1739159441568,-359.8359169,0.00010958,2]
[352542608,1739159441578,-500.0,0.00010958,2]
[352542609,1739159441587,-500.0,0.00010958,2]
[352542610,1739159441596,-500.0,0.00010958,2]
[352542611,1739159441605,-500.0,0.00010958,2]
[352542612,1739159441615,-500.0,0.00010958,2]
[352542613,1739159441626,-500.0,0.00010958,2]
[352542614,1739159441636,-500.0,0.00010958,2]
[352542615,1739159441646,-1287.78,0.00010958,2]
[352542616,1739159441655,-501.12317126,0.00010958,2]
[352542617,1739159441665,-500.0,0.00010958,2]
[352542618,1739159441674,-500.0,0.00010958,2]
[352542619,1739159441684,-1187.79,0.00010958,2]
[352542620,1739159441693,-500.0,0.00010958,2]
[352542621,1739159441703,-732.99,0.00010958,2]
[352542622,1739159441713,-500.0,0.00010958,2]
[352542623,1739159441722,-501.2433741,0.00010958,2]
[352542624,1739159441732,-1000.7,0.00010958,2]
[352542625,1739159441741,-1242.99,0.00010958,2]
[352542626,1739159441750,-503.64201074,0.00010958,2]
[352542627,1739159441759,-500.0,0.00010958,2]
[352542628,1739159441768,-500.0,0.00010958,2]
[352542629,1739159441777,-500.0,0.00010958,2]
[352542630,1739159441787,-503.07666868,0.00010958,2]
[352542631,1739159441796,-500.0,0.00010958,2]
[352542632,1739159441807,-500.0,0.00010958,2]
[352542633,1739159441816,-500.0,0.00010958,2]
[352542634,1739159441825,-500.0,0.00010958,2]
[352542635,1739159441835,-288.81217373,0.00010958,2]
[352542636,1739159441844,-500.0,0.00010958,2]
[352542637,1739159441853,-500.0,0.00010958,2]
[352542638,1739159441862,-500.64004899,0.00010958,2]
[352542639,1739159441871,-500.0,0.00010958,2]
[352542640,1739159441880,-521.05,0.00010958,2]
[352542641,1739159441890,-500.0,0.00010958,2]
[352542642,1739159441899,-500.0,0.00010958,2]
[352542643,1739159441908,-500.0,0.00010958,2]
[352542644,1739159441918,-501.03585771,0.00010958,2]
[352542645,1739159441927,-364.73114629,0.00010958,2]
[352542646,1739159441937,-500.0,0.00010958,2]
[352542647,1739159441946,-500.0,0.00010958,2]
[352542648,1739159441954,-790.31,0.00010958,2]
[352542649,1739159441963,-500.0,0.00010958,2]
[352542650,1739159441971,-500.0,0.00010958,2]
[352542651,1739159441979,-500.0,0.00010958,2]
[352542652,1739159441988,-500.0,0.00010958,2]
[352542653,1739159441996,-322.61212868,0.00010958,2]
[352542654,1739159442004,-500.0,0.00010958,2]
[352542655,1739159442012,-500.0,0.00010958,2]
[352542656,1739159442020,-500.0,0.00010958,2]
[352542657,1739159442028,-510.08,0.00010958,2]
[352542658,1739159442036,-517.08754388,0.00010958,2]
[352542659,1739159442044,-1045.63,0.00010958,2]
[352542660,1739159442052,-500.0,0.00010958,2]
[352542661,1739159442060,-500.0,0.00010958,2]
[352542662,1739159442069,-500.0,0.00010958,2]
[352542663,1739159442079,-500.0,0.00010958,2]
[352542664,1739159442088,-500.0,0.00010958,2]
[352542665,1739159442098,-937.96,0.00010958,2]
[352542666,1739159442107,-500.0,0.00010958,2]
[352542667,1739159442116,-500.0,0.00010958,2]
[352542668,1739159442126,-500.0,0.00010958,2]
[352542669,1739159442135,-3052.88,0.00010958,2]
[352542670,1739159442144,-501.02454357,0.00010958,2]
[352542671,1739159442153,-679.89,0.00010958,2]
[352542672,1739159442162,-500.0,0.00010958,2]
[352542673,1739159442171,-500.0,0.00010958,2]
[352542674,1739159442179,-500.0,0.00010958,2]
[352542675,1739159442189,-500.0,0.00010958,2]
[352542676,1739159442198,-500.0,0.00010958,2]
[352542677,1739159442207,-500.0,0.00010958,2]
[352542678,1739159442216,-503.87395455,0.00010958,2]
[352542679,1739159442225,-6790.26,0.00010958,2]
[352542680,1739159442235,-500.0,0.00010958,2]
[352542681,1739159442244,-1017.48,0.00010958,2]
[352542682,1739159442253,-500.57145883,0.00010958,2]
[352542683,1739159442262,-500.0,0.00010958,2]
[352542684,1739159442271,-500.0,0.00010958,2]
[352542685,1739159442280,-500.0,0.00010958,2]
[352542686,1739159442290,-500.0,0.00010958,2]
[352542687,1739159442299,-500.0,0.00010958,2]
[352542688,1739159442308,-500.58130003,0.00010958,2]
[352542689,1739159442318,-706.11,0.00010958,2]
[352542690,1739159442328,-165.64291604,0.00010958,2]
[352542691,1739159442337,-3458.8,0.00010958,2]
[352542692,1739159442346,-552.4757375,0.00010958,2]
[352542693,1739159442356,-500.0,0.00010958,2]
[352542694,1739159442365,-618.0735297,0.00010958,2]
[352542695,1739159442374,-500.0,0.00010958,2]
[352542696,1739159442383,-500.0,0.00010958,2]
[352542697,1739159442393,-10188.75,0.00010958,2]
[352542698,1739159442402,-500.0,0.00010958,2]
[352542699,1739159442413,-500.0,0.00010958,2]
[352542700,1739159442422,-281.75,0.00010959,2]
[352542701,1739159442432,-234.79,0.00010959,2]
[352542702,1739159442442,-4746.0,0.00010959,2]
[352542703,1739159442451,-3955.0,0.00010959,2]
[352542704,1739159442460,-3295.83,0.00010959,2]
[352542705,1739159442470,-2746.52,0.00010959,2]
[352542706,1739159442479,-2288.77,0.00010959,2]
[352542707,1739159442488,-1907.31,0.00010959,2]
[352542708,1739159442498,-1589.42,0.00010959,2]
[352542709,1739159442507,-1324.52,0.00010959,2]
[352542710,1739159442517,-1103.77,0.00010959,2]
[352542711,1739159442526,-919.81,0.00010959,2]
[352542712,1739159442535,-766.5,0.00010959,2]
[352542713,1739159442544,-508.04238956,0.00010995,2]
[352542714,1739159442553,-500.0,0.00011095,2]
[352542715,1739159442564,-500.0,0.00011095,2]
[352542716,1739159442573,-500.0,0.00011095,2]
[352542717,1739159442584,-500.0,0.00011095,2]
[352542718,1739159442594,-500.0,0.00011095,2]
[352542719,1739159442603,-500.0,0.00011095,2]
[352542720,1739159442612,-500.0,0.00011095,2]
[352542721,1739159442623,-500.0,0.00011095,2]
[352542722,1739159442633,-500.0,0.00011095,2]
[352542723,1739159442642,-500.0,0.00011095,2]
[352542724,1739159442651,-500.0,0.00011095,2]
[352542725,1739159442661,-500.0,0.00011095,2]
[352542726,1739159442771,-500.0,0.00011095,2]
[352542727,1739159442781,-502.91356902,0.00011095,2]
[352542728,1739159442790,-719.3,0.00011095,2]
[352542729,1739159442799,-503.57704402,0.00011095,2]
[352542730,1739159442808,-500.0,0.00011095,2]
[352542731,1739159442818,-375.62339138,0.00011095,2]
[352542732,1739159442829,-500.0,0.00011095,2]
[352542733,1739159442838,-503.73812964,0.00011095,2]
[352542734,1739159442847,-1019.54,0.00011095,2]
[352542735,1739159442856,-500.0,0.00011095,2]
[352542736,1739159442865,-732.17,0.00011095,2]
[352542737,1739159442875,-500.0,0.00011095,2]
[352542738,1739159442884,-500.0,0.00011095,2]
[352542739,1739159442893,-218.79078048,0.00011095,2]
[352542740,1739159442902,-500.0,0.00011095,2]
[352542741,1739159442911,-500.0,0.00011095,2]
[352542742,1739159442920,-500.0,0.00011095,2]
[352542743,1739159442929,-500.0,0.00011095,2]
[352542744,1739159442938,-455.21463509,0.00011095,2]
[352542745,1739159442947,-500.0,0.00011095,2]
[352542746,1739159442957,-500.0,0.00011095,2]
[352542747,1739159442966,-733.41,0.00011095,2]
[352542748,1739159442976,-742.49,0.00011095,2]
[352542749,1739159442985,-500.0,0.00011095,2]
[352542750,1739159442994,-500.0,0.00011095,2]
[352542751,1739159443003,-500.0,0.00011095,2]
[352542752,1739159443012,-500.0,0.00011095,2]
[352542753,1739159443021,-500.0,0.00011095,2]
[352542754,1739159443031,-503.15504741,0.00011095,2]
[352542755,1739159443041,-500.0,0.00011095,2]
[352542756,1739159443050,-500.0,0.00011095,2]
[352542757,1739159443059,-177.69,0.00011095,2]
[352542758,1739159443069,-500.0,0.00011095,2]
[352542759,1739159443078,-1187.85,0.00011095,2]
[352542760,1739159443088,-227.4,0.00011095,2]
[352542761,1739159443098,-500.0,0.00011095,2]
[352542762,1739159443107,-500.0,0.00011095,2]
[352542763,1739159443116,-500.0,0.00011095,2]
[352542764,1739159443126,-500.0,0.00011095,2]
[352542765,1739159443136,-500.0,0.00011095,2]
[352542766,1739159443145,-500.0,0.00011095,2]
[352542767,1739159443155,-500.0,0.00011095,2]
[352542769,1739159443165,-694.28,0.00011095,2]
[352542771,1739159443174,-500.0,0.00011095,2]
[352542773,1739159443183,-500.0,0.00011095,2]
[352542775,1739159443193,-500.0,0.00011095,2]
[352542777,1739159443202,-500.0,0.00011095,2]
[352542779,1739159443212,-705.99,0.00011095,2]
[352542781,1739159443221,-500.0,0.00011095,2]
[352542783,1739159443231,-500.0,0.00011095,2]
[352542785,1739159443241,-500.0,0.00011095,2]
[352542787,1739159443250,-500.0,0.00011095,2]
[352542790,1739159443260,-500.0,0.00011095,2]
[352542792,1739159443269,-500.0,0.00011095,2]
[352542794,1739159443279,-580.12,0.00011095,2]
[352542796,1739159443289,-531.7758061,0.00011095,2]
[352542798,1739159443298,-500.0,0.00011095,2]
[352542799,1739159443307,-1920.71,0.00011095,2]
[352542801,1739159443317,-500.0,0.00011095,2]
[352542803,1739159443327,-500.0,0.00011095,2]
[352542805,1739159443340,-500.0,0.00011095,2]
[352542807,1739159443350,-241.3324802,0.00011095,2]
[352542809,1739159443359,-500.0,0.00011095,2]
[352542811,1739159443368,-500.0,0.00011095,2]
[352542813,1739159443377,-500.0,0.00011095,2]
[352542815,1739159443387,-500.0,0.00011095,2]
[352542817,1739159443396,-500.0,0.00011095,2]
[352542819,1739159443406,-359.80670119,0.00011095,2]
[352542820,1739159443416,-500.0,0.00011095,2]
[352542823,1739159443425,-502.3558219,0.00011095,2]
[352542825,1739159443435,-610.0,0.00011095,2]
[352542827,1739159443444,-500.0,0.00011095,2]
[352542829,1739159443454,-504.96891382,0.00011095,2]
[352542832,1739159443467,-500.0,0.00011095,2]
[352542834,1739159443477,-500.0,0.00011095,2]
[352542835,1739159443486,-1079.91,0.00011095,2]
[352542837,1739159443495,-500.0,0.00011095,2]
[352542839,1739159443505,-500.0,0.00011095,2]
[352542841,1739159443514,-500.0,0.00011095,2]
[352542843,1739159443523,-500.0,0.00011095,2]
[352542845,1739159443532,-500.0,0.00011095,2]
[352542847,1739159443542,-653.91,0.00011095,2]
[352542849,1739159443551,-500.0,0.00011095,2]
[352542851,1739159443561,-500.0,0.00011095,2]
[352542853,1739159443571,-501.46,0.00011095,2]
[352542856,1739159443582,-500.0,0.00011095,2]
[352542858,1739159443593,-500.0,0.00011095,2]
[352542860,1739159443602,-500.0,0.00011095,2]
[352542862,1739159443611,-500.0,0.00011095,2]
[352542864,1739159443622,-500.0,0.00011095,2]
[352542866,1739159443634,-3903.0,0.00011095,2]
[352542868,1739159443643,-500.0,0.00011095,2]
[352542870,1739159443652,-500.0,0.00011095,2]
[352542872,1739159443663,-500.0,0.00011095,2]
[352542874,1739159443672,-404.48,0.00011095,2]
[352542875,1739159443681,-3709.32,0.00011095,2]
[352542876,1739159443690,-500.0,0.00011095,2]
[352542877,1739159443701,-500.0,0.00011095,2]
[352542878,1739159443710,-424.26783585,0.00011095,2]
[352542879,1739159443719,-534.23,0.00011095,2]
[352542880,1739159443728,-500.0,0.00011095,2]
[352542881,1739159443738,-500.0,0.00011095,2]
[352542882,1739159443748,-3719.6,0.00011095,2]
[352542883,1739159443757,-500.0,0.00011095,2]
[352542884,1739159443766,-871.83,0.00011095,2]
[352542885,1739159443776,-2055.74,0.00011095,2]
[352542886,1739159443785,-501.50463004,0.00011095,2]
[352542887,1739159443795,-500.0,0.00011095,2]
[352542888,1739159443804,-500.0,0.00011095,2]
[352542889,1739159443814,-500.0,0.00011095,2]
[352542890,1739159443823,-1325.55,0.00011095,2]
[352542891,1739159443834,-500.0,0.00011095,2]
[352542892,1739159443843,-500.0,0.00011095,2]
[352542894,1739159443852,-500.0,0.00011095,2]
[352542896,1739159443862,-500.0,0.00011095,2]
[352542897,1739159443871,-760.18,0.00011095,2]
[352542898,1739159443880,-500.0,0.00011095,2]
[352542899,1739159443891,-500.0,0.00011095,2]
[352542902,1739159443901,-650.97,0.00011095,2]
[352542903,1739159443910,-14163.79,0.00011095,2]
[352542905,1739159443920,-518.98,0.00011095,2]
[352542907,1739159443929,-500.0,0.00011095,2]
[352542909,1739159443938,-500.0,0.00011095,2]
[352542911,1739159443948,-26907.86,0.00011095,2]
[352542913,1739159443957,-2005.94,0.00011095,2]
[352542914,1739159443966,-1618.92,0.00011095,2]
[352542915,1739159443975,-500.0,0.00011095,2]
[352542916,1739159443984,-500.0,0.00011095,2]
[352542917,1739159443993,-704.77,0.00011095,2]
[352542918,1739159444002,-500.0,0.00011095,2]
[352542919,1739159444011,-1456.37,0.00011095,2]
[352542920,1739159444020,-500.0,0.00011095,2]
[352542921,1739159444029,-779.8,0.00011095,2]
[352542922,1739159444039,-500.0,0.00011095,2]
[352542923,1739159444051,-500.0,0.00011095,2]
[352542924,1739159444060,-500.0,0.00011095,2]
[352542925,1739159444069,-500.0,0.00011095,2]
[352542926,1739159444079,-501.103816,0.00011095,2]
[352542927,1739159444088,-500.0,0.00011095,2]
[352542928,1739159444097,-500.0,0.00011095,2]
[352542929,1739159444107,-1919.7,0.00011095,2]
[352542930,1739159444116,-500.0,0.00011095,2]
[352542931,1739159444125,-824.44,0.00011095,2]
[352542932,1739159444135,-500.0,0.00011095,2]
[352542933,1739159444144,-500.0,0.00011095,2]
[352542934,1739159444153,-500.0,0.00011095,2]
[352542935,1739159444163,-1614.34,0.00011095,2]
[352542936,1739159444172,-500.0,0.00011095,2]
[352542937,1739159444181,-500.0,0.00011095,2]
[352542938,1739159444191,-500.0,0.00011095,2]
[352542939,1739159444200,-500.0,0.00011095,2]
[352542940,1739159444209,-351.04970102,0.00011095,2]
[352542941,1739159444218,-550.54473557,0.00011095,2]
[352542942,1739159444227,-500.0,0.00011095,2]
[352542943,1739159444236,-500.0,0.00011095,2]
[352542944,1739159444246,-500.0,0.00011095,2]
[352542945,1739159444255,-500.0,0.00011095,2]
[352542946,1739159444264,-500.0,0.00011095,2]
[352542947,1739159444273,-500.0,0.00011095,2]
[352542948,1739159444282,-500.0,0.00011095,2]
[352542949,1739159444292,-589.21,0.00011095,2]
[352542950,1739159444301,-1026.49,0.00011095,2]
[352542951,1739159444310,-500.0,0.00011095,2]
[352542952,1739159444319,-746.76,0.00011095,2]
[352542953,1739159444330,-500.0,0.00011095,2]
[352542954,1739159444339,-655.27,0.00011095,2]
[352542955,1739159444348,-500.0,0.00011095,2]
[352542956,1739159444357,-2053.08,0.00011095,2]
[352542957,1739159444366,-2692.2,0.00011095,2]
[352542958,1739159444375,-500.0,0.00011095,2]
[352542959,1739159444385,-500.0,0.00011095,2]
[352542960,1739159444394,-500.0,0.00011095,2]
[352542961,1739159444404,-500.0,0.00011095,2]
[352542962,1739159444413,-500.0,0.00011095,2]
[352542963,1739159444423,-500.0,0.00011095,2]
[352542964,1739159444431,-1287.78,0.00011095,2]
[352542965,1739159444441,-500.0,0.00011095,2]
[352542966,1739159444450,-290.38425263,0.00011095,2]
[352542967,1739159444459,-1187.79,0.00011095,2]
[352542968,1739159444469,-500.0,0.00011095,2]
[352542969,1739159444478,-732.99,0.00011095,2]
[352542970,1739159444488,-500.0,0.00011095,2]
[352542971,1739159444500,-1000.7,0.00011095,2]
[352542972,1739159444511,-1242.99,0.00011095,2]
[352542973,1739159444521,-500.6785591,0.00011095,2]
[352542974,1739159444530,-500.0,0.00011095,2]
[352542975,1739159444539,-500.0,0.00011095,2]
[352542976,1739159444549,-500.0,0.00011095,2]
[352542977,1739159444558,-500.0,0.00011095,2]
[352542978,1739159444567,-500.0,0.00011095,2]
[352542979,1739159444576,-500.0,0.00011095,2]
[352542980,1739159444586,-500.0,0.00011095,2]
[352542981,1739159444595,-500.0,0.00011095,2]
[352542982,1739159444681,-500.0,0.00011095,2]
[352542983,1739159444691,-521.05,0.00011095,2]
[352542984,1739159444701,-333.12353233,0.00011095,2]
[352542985,1739159444716,-500.0,0.00011095,2]
[352542986,1739159444725,-553.11562283,0.00011095,2]
[352542987,1739159444734,-500.0,0.00011095,2]
[352542988,1739159444743,-501.06790988,0.00011095,2]
[352542989,1739159444752,-790.31,0.00011095,2]
[352542990,1739159444761,-500.0,0.00011095,2]
[352542991,1739159444770,-500.0,0.00011095,2]
[352542992,1739159444779,-500.0,0.00011095,2]
[352542993,1739159444790,-470.99303887,0.00011095,2]
[352542994,1739159444799,-500.0,0.00011095,2]
[352542995,1739159444808,-500.63120117,0.00011095,2]
[352542996,1739159444818,-510.08,0.00011095,2]
[352542997,1739159444827,-1045.63,0.00011095,2]
[352542998,1739159444837,-500.0,0.00011095,2]
[352542999,1739159444847,-500.0,0.00011095,2]
[352543000,1739159444856,-585.82299965,0.00011095,2]
[352543001,1739159444865,-500.0,0.00011095,2]
[352543002,1739159444875,-500.0,0.00011095,2]
[352543003,1739159444884,-937.96,0.00011095,2]
[352543004,1739159444893,-501.2785299,0.00011095,2]
[352543005,1739159444902,-500.0,0.00011095,2]
[352543006,1739159444912,-500.0,0.00011095,2]
[352543007,1739159444921,-3052.88,0.00011095,2]
[352543008,1739159444930,-206.41925426,0.00011095,2]
[352543009,1739159444939,-679.89,0.00011095,2]
[352543010,1739159444949,-500.0,0.00011095,2]
[352543011,1739159444958,-179.87576636,0.00011095,2]
[352543012,1739159444967,-500.0,0.00011095,2]
[352543013,1739159444976,-500.0,0.00011095,2]
[352543014,1739159444985,-497.47264862,0.00011095,2]
[352543015,1739159444995,-6790.26,0.00011095,2]
[352543016,1739159445004,-222.01950053,0.00011095,2]
[352543017,1739159445014,-1017.48,0.00011095,2]
[352543018,1739159445023,-500.0,0.00011095,2]
[352543019,1739159445032,-500.0,0.00011095,2]
[352543020,1739159445042,-500.0,0.00011095,2]
[352543021,1739159445051,-502.66595979,0.00011095,2]
[352543022,1739159445060,-430.53402817,0.00011095,2]
[352543023,1739159445070,-706.11,0.00011095,2]
[352543024,1739159445079,-3458.8,0.00011095,2]
[352543025,1739159445089,-500.0,0.00011095,2]
[352543026,1739159445099,-500.0,0.00011095,2]
[352543027,1739159445109,-500.0,0.00011095,2]
[352543028,1739159445119,-10188.75,0.00011095,2]
[352543029,1739159445128,-537.74685773,0.00011095,2]
[352543030,1739159445138,-500.0,0.00011095,2]
[352543031,1739159445147,-508.04238956,0.00011132,2]
[352543032,1739159445156,-38039.3414354,0.00011132,2]
[352543033,1739159445166,-302.93813234,0.00011231,2]
[352543034,1739159445176,-500.0,0.00011231,2]
[352543035,1739159445186,-500.0,0.00011231,2]
[352543036,1739159445196,-633.85829172,0.00011231,2]
[352543037,1739159445205,-500.0,0.00011231,2]
[352543038,1739159445216,-500.0,0.00011231,2]
[352543039,1739159445225,-500.0,0.00011231,2]
[352543040,1739159445235,-500.0,0.00011232,2]
[352543041,1739159445244,-500.0,0.00011232,2]
[352543042,1739159445254,-500.0,0.00011232,2]
[352543043,1739159445264,-500.0,0.00011232,2]
[352543044,1739159445275,-500.0,0.00011232,2]
[352543045,1739159445285,-500.0,0.00011232,2]
[352543046,1739159445295,-500.0,0.00011232,2]
[352543047,1739159445305,-500.0,0.00011232,2]
[352543048,1739159445314,-500.0,0.00011232,2]
[352543049,1739159445324,-500.0,0.00011232,2]
[352543050,1739159445335,-500.0,0.00011232,2]
[352543051,1739159445344,-719.3,0.00011232,2]
[352543052,1739159445353,-505.02632934,0.00011232,2]
[352543053,1739159445362,-1019.54,0.00011232,2]
[352543054,1739159445373,-504.4739251,0.00011232,2]
[352543055,1739159445382,-732.17,0.00011232,2]
[352543056,1739159445391,-500.0,0.00011232,2]
[352543057,1739159445401,-504.17908507,0.00011232,2]
[352543058,1739159445410,-500.0,0.00011232,2]
[352543059,1739159445419,-500.0,0.00011232,2]
[352543060,1739159445429,-500.0,0.00011232,2]
[352543061,1739159445438,-500.0,0.00011232,2]
[352543062,1739159445448,-500.0,0.00011232,2]
[352543063,1739159445457,-500.0,0.00011232,2]
[352543064,1739159445467,-733.41,0.00011232,2]
[352543065,1739159445476,-742.49,0.00011232,2]
[352543066,1739159445497,-500.0,0.00011232,2]
[352543067,1739159445507,-347.58565032,0.00011232,2]
[352543068,1739159445517,-500.0,0.00011232,2]
[352543069,1739159445527,-580.82721414,0.00011232,2]
[352543070,1739159445536,-500.0,0.00011232,2]
[352543071,1739159445546,-500.0,0.00011232,2]
[352543072,1739159445556,-500.0,0.00011232,2]
[352543073,1739159445565,-500.0,0.00011232,2]
[352543074,1739159445575,-1187.85,0.00011232,2]
[352543075,1739159445586,-500.0,0.00011232,2]
[352543076,1739159445596,-500.0,0.00011232,2]
[352543077,1739159445607,-500.0,0.00011232,2]
[352543078,1739159445618,-500.0,0.00011232,2]
[352543079,1739159445632,-500.0,0.00011232,2]
[352543080,1739159445641,-500.0,0.00011232,2]
[352543081,1739159445651,-694.28,0.00011232,2]
[352543082,1739159445661,-500.0,0.00011232,2]
[352543083,1739159445671,-500.0,0.00011232,2]
[352543084,1739159445681,-500.0,0.00011232,2]
[352543085,1739159445690,-500.0,0.00011232,2]
[352543086,1739159445701,-705.99,0.00011232,2]
[352543087,1739159445710,-500.0,0.00011232,2]
[352543088,1739159445721,-500.0,0.00011232,2]
[352543089,1739159445731,-503.51703914,0.00011232,2]
[352543090,1739159445740,-500.0,0.00011232,2]
[352543091,1739159445749,-500.0,0.00011232,2]
[352543092,1739159445759,-580.12,0.00011232,2]
[352543093,1739159445768,-500.0,0.00011232,2]
[352543094,1739159445777,-1920.71,0.00011232,2]
[352543095,1739159445786,-500.0,0.00011232,2]
[352543096,1739159445796,-502.11151147,0.00011232,2]
[352543097,1739159445806,-500.0,0.00011232,2]
[352543098,1739159445815,-500.0,0.00011232,2]
[352543099,1739159445823,-500.0,0.00011232,2]
[352543100,1739159445835,-500.0,0.00011232,2]
[352543101,1739159445844,-500.0,0.00011232,2]
[352543102,1739159445853,-610.0,0.00011232,2]
[352543103,1739159445863,-500.0,0.00011232,2]
[352543104,1739159445871,-500.0,0.00011232,2]
[352543105,1739159445881,-500.0,0.00011232,2]
[352543106,1739159445890,-1079.91,0.00011232,2]
[352543107,1739159445900,-500.0,0.00011232,2]
[352543108,1739159445910,-504.6760624,0.00011232,2]
[352543109,1739159445920,-500.0,0.00011232,2]
[352543110,1739159445929,-500.0,0.00011232,2]
[352543111,1739159445938,-653.91,0.00011232,2]
[352543112,1739159445947,-500.0,0.00011232,2]
[352543113,1739159445957,-541.05493765,0.00011232,2]
[352543114,1739159445967,-501.46,0.00011232,2]
[352543115,1739159445976,-500.0,0.00011232,2]
[352543116,1739159445985,-502.5967259,0.00011232,2]
[352543117,1739159445994,-500.0,0.00011232,2]
[352543118,1739159446003,-500.0,0.00011232,2]
[352543119,1739159446012,-500.0,0.00011232,2]
[352543120,1739159446021,-3903.0,0.00011232,2]
[352543121,1739159446031,-500.0,0.00011232,2]
[352543122,1739159446040,-314.11658252,0.00011232,2]
[352543123,1739159446049,-500.0,0.00011232,2]
[352543124,1739159446059,-3709.32,0.00011232,2]
[352543125,1739159446068,-501.63341583,0.00011232,2]
[352543126,1739159446077,-500.0,0.00011232,2]
[352543127,1739159446088,-225.63306471,0.00011232,2]
[352543128,1739159446098,-500.0,0.00011232,2]
[352543129,1739159446107,-3719.6,0.00011232,2]
[352543130,1739159446116,-501.28196643,0.00011232,2]
[352543131,1739159446125,-871.83,0.00011232,2]
[352543132,1739159446135,-2055.74,0.00011232,2]
[352543133,1739159446144,-500.0,0.00011232,2]
[352543134,1739159446154,-500.0,0.00011232,2]
[352543135,1739159446163,-500.0,0.00011232,2]
[352543136,1739159446172,-1325.55,0.00011232,2]
[352543137,1739159446181,-500.0,0.00011232,2]
[352543138,1739159446190,-500.0,0.00011232,2]
[352543139,1739159446200,-500.0,0.00011232,2]
[352543140,1739159446209,-500.0,0.00011232,2]
[352543141,1739159446219,-760.18,0.00011232,2]
[352543142,1739159446227,-500.0,0.00011232,2]
[352543143,1739159446237,-500.0,0.00011232,2]
[352543144,1739159446247,-650.97,0.00011232,2]
[352543145,1739159446257,-14163.79,0.00011232,2]
[352543146,1739159446267,-518.98,0.00011232,2]
[352543147,1739159446277,-501.58816451,0.00011232,2]
[352543148,1739159446286,-500.0,0.00011232,2]
[352543149,1739159446296,-26907.86,0.00011232,2]
[352543150,1739159446305,-2005.94,0.00011232,2]
[352543151,1739159446315,-1618.92,0.00011232,2]
[352543152,1739159446324,-500.0,0.00011232,2]
[352543153,1739159446333,-704.77,0.00011232,2]
[352543154,1739159446343,-500.0,0.00011232,2]
[352543155,1739159446352,-1456.37,0.00011232,2]